Cogmind - Beta 15 @@@ ROGUE MODE // 2025.08.02 @ 10:29:12 Player: FrigidRock Result: Destroyed by 3P-51Q(R) with Subdweller Laser Performance ------------- Evolutions (0) 0 Regions Visited (2) 400 Robots Destroyed (18) 90 Value Destroyed (486) 486 Prototype IDs (11) 220 Alien Tech Used (0) 0 Bonus (0) 0 TOTAL SCORE: 1196 Bonus ------- None Cogmind --------- Core Integrity 0/250 Matter 142/300 Energy 265/265 System Corruption 0% Temperature Cool (6) Movement Walking (120) Location -10/Subcaves Parts ------- > --- POWER (1) -------- Improved Ion Engine > --- PROPULSION (2) --- Improved Aluminum Leg Improved Aluminum Leg > --- UTILITY (2) ------ Small Storage Unit > --- WEAPON (2) ------- Improved Light Cannon Improved Light Cannon > --- INVENTORY (8) ---- Improved Ion Engine Improved Aluminum Leg Improved Aluminum Leg Improved Heat Sink Light Armor Plating Gun Armor Riot Gun Peak State ------------ > --- POWER ------------ Improved Ion Engine > --- PROPULSION ------- Improved Aluminum Leg Improved Aluminum Leg > --- UTILITY ---------- Improved Heat Sink Small Storage Unit > --- WEAPON ----------- Improved Light Cannon Improved Light Cannon > --- INVENTORY -------- Improved Ion Engine Improved Ion Engine Improved Aluminum Leg Improved Aluminum Leg Heat Sink Improved Light Cannon [Rating: 15] Favorites ----------- Power Improved Ion Engine Engine Improved Ion Engine Propulsion Improved Aluminum Leg Leg Improved Aluminum Leg Utility Small Storage Unit Device Terrain Scanner Storage Small Storage Unit Weapon Improved Light Cannon Energy Gun Riot Gun Ballistic Gun Light Assault Rifle Ballistic Cannon Improved Light Cannon Build | -11 -10 -10 ------- Run | Yrd Mat Sub Slots Evolved . | . . . Power . | . . . Propulsion . | . . . Utility . | . . . Weapon . | . . . Parts Attached 18 | 6 8 4 Power 3 | 1 1 1 Engine 3 | 1 1 1 Core . | . . . Reactor . | . . . Propulsion 4 | 2 2 . Treads . | . . . Leg 4 | 2 2 . Wheel . | . . . Hover . | . . . Flight . | . . . Utility 4 | 1 3 . Device 3 | . 3 . Storage 1 | 1 . . Processor . | . . . Hackware . | . . . Protection . | . . . Artifact . | . . . Weapon 7 | 2 2 3 Energy Gun 2 | 1 . 1 Energy Cannon . | . . . Ballistic Gun 1 | 1 . . Ballistic Cannon 4 | . 2 2 Launcher . | . . . Special Weapon . | . . . Impact Weapon . | . . . Slashing Weapon . | . . . Piercing Weapon . | . . . Special Melee Weapon . | . . . Unidentified Prototypes . | . . . Parts Lost 2 | . . 2 Power . | . . . Propulsion . | . . . Utility 1 | . . 1 Weapon 1 | . . 1 Highest Loss Streak 1 | . . 1 To Critical Strikes . | . . . Average Backups 7 | . 5 7 Power 1 | . 1 1 Propulsion 1 | . 1 2 Utility 2 | . 1 2 Weapon 1 | . 1 1 Tool/Special . | . . . Unused Backups 7 | . 2 5 Power 2 | . 1 1 Propulsion 3 | . 1 2 Utility 2 | . . 2 Weapon . | . . . Tool/Special . | . . . Average Slot Usage (%) 99 | . 95 99 Engine 14 | . 14 14 Leg 28 | . 28 28 Device 13 | . 10 13 Storage 14 | . 14 14 Energy Gun 6 | . 3 7 Ballistic Cannon 20 | . 21 20 Peak Build Rating 15 | 6 15 15 Average Rating 13 | 4 12 13 On Entrance 6 | . 6 13 Naked Turns . | . . . Heaviest Build 21 | 13 21 21 Greatest Support 26 | 20 26 26 Greatest Overweight (x) 4 | 4 . . Average Overweight (x) . | . . . Largest Inventory Capacity 8 | 8 8 8 Average Capacity 7 | 7 8 8 Most Carried 8 | 1 8 8 Average Carried 7 | . 6 7 Final Capacity 8 | 8 8 8 Final Carried 8 | 1 8 7 Class Distribution -------------------- 100% | Mutant Dominant Class ---------------- Mutant | -10/Materials Mutant | -10/Subcaves Resources | -11 -10 -10 ----------- Run | Yrd Mat Sub Matter Collected 680 | 150 129 401 Remotely . | . . . Salvage Created 325 | . 175 150 Parts 34 | . 24 10 Haulers Intercepted . | . . . Recyclers Shooed . | . . . Parts Field Recycled . | . . . Retrieved Matter . | . . . Parts Self-Destructed 7 | . . 7 Prevented . | . . . Kills | -11 -10 -10 ------- Run | Yrd Mat Sub Combat Hostiles Destroyed 16 | . 8 8 Guns 2 | . . 2 Cannons 14 | . 8 6 Classes Destroyed 5 | . 4 1 Builder 1 | . 1 . Tunneler 1 | . 1 . Swarmer 5 | . 3 2 Grunt 7 | . 5 2 Subdweller 4 | . . 4 Best Kill Streak 7 | . 7 2 Combat Bots Only 5 | . 5 2 Max Kills in Single Turn 2 | . 2 1 Gunslinging . | . . . Exploded . | . . . Melee . | . . . Uniques/NPCs Destroyed . | . . . Combat | -11 -10 -10 -------- Run | Yrd Mat Sub Hostile Shots Fired 70 | . 32 38 Missed 20 | . 11 9 Hits 50 | . 21 29 Projectile 50 | . 21 29 Critical Strikes 2 | . . 2 Damage Taken 855 | . 232 623 Core 256 | . 46 210 Absorbed by Shields . | . . . Core Remaining (%) 100 | 100 . . Volleys Fired 65 | . 17 48 Largest 2 | . 2 2 Hottest 83 | . 66 83 Shots Fired 116 | . 34 82 Gun 4 | . . 4 Cannon 112 | . 34 78 Launcher . | . . . Special . | . . . Kinetic 112 | . 34 78 Thermal . | . . . Explosive . | . . . Electromagnetic 4 | . . 4 Robot Hit Streak 10 | . 7 10 Robot Miss Streak 2 | . 2 2 Penetration Max . | . . . Secondary Targets . | . . . Shots Hit Robots 58 | . 20 38 Core Hits 24 | . 11 13 Critical Kills . | . . . Critical Parts Destroyed . | . . . Critical Strikes 4 | . 2 2 Blast 4 | . 2 2 Melee Attacks . | . . . Impact . | . . . Slashing . | . . . Piercing . | . . . Sneak Attacks . | . . . Combat Hostiles . | . . . Follow-up Attacks . | . . . Damage Inflicted 1348 | . 544 804 Guns 19 | . . 19 Cannons 1329 | . 544 785 Explosions . | . . . Melee . | . . . Ramming . | . . . Kinetic 1329 | . 544 785 Thermal . | . . . Explosive . | . . . Electromagnetic 19 | . . 19 Impact . | . . . Slashing . | . . . Piercing . | . . . Highest Corruption . | . . . Average Corruption . | . . . Corruption Purged . | . . . Corruption Blocked . | . . . Overload Shots . | . . . Overflow Damage . | . . . Projectiles . | . . . Explosions . | . . . Melee . | . . . Knockbacks 9 | . 1 8 Impact . | . . . Kinetic 9 | . 1 8 Secondary . | . . . Self-Inflicted Damage . | . . . Shots . | . . . Rammed . | . . . Targets Rammed . | . . . Kicked . | . . . Crushed . | . . . Highest Temperature 114 | . 114 10 Average Temperature 38 | . 39 10 Received Heat Transfer 303 | . 117 186 Siege Activations . | . . . Martial Activations . | . . . Shielding Activations . | . . . Robots Disrupted . | . . . Combat Hostiles . | . . . Robots Corrupted . | . . . Combat Hostiles . | . . . Parts Fried . | . . . Impact Corruptions . | . . . Robots Melted . | . . . Combat Hostiles . | . . . Parts Melted . | . . . Heat Transferred . | . . . Parts Sabotaged . | . . . Parts Stolen . | . . . Parts Stripped . | . . . Power Chain Reactions . | . . . Alert | -11 -10 -10 ------- Run | Yrd Mat Sub Maximum Alert Level . | . . . Low Security (%) 100 | 100 100 . Level 1 . | . . . Level 2 . | . . . Level 3 . | . . . Level 4 . | . . . Level 5 . | . . . High Security . | . . . Max Security . | . . . Peak Influence 120 | . 120 . Initial . | . . . Average 44 | . 56 . Influence Increases 316 | . 216 100 Destroy 0b10 Robot/C 240 | . 160 80 Destroy 0b10 Robot/NC 10 | . 10 . Destroy Leader 50 | . 30 20 Successful Hack 16 | . 16 . Influence Decreases 316 | . 112 204 Entered New Map 51 | . . 51 Time Decay 265 | . 112 153 Squads Dispatched 1 | . 1 . Investigation 1 | . 1 . Extermination . | . . . Reinforcement . | . . . Assault . | . . . Garrison . | . . . Intercept . | . . . Searches Triggered . | . . . Construction Impeded . | . . . Haulers Reinforced . | . . . Active Scanning Responses . | . . . Cargo Convoy Interrupts . | . . . Stealth | -11 -10 -10 --------- Run | Yrd Mat Sub Distress Signals 3 | . 3 . Communications Jammed . | . . . Distress Signals . | . . . Times Spotted 20 | . 11 9 Peak Tracking Total 4 | . 4 2 Tactical Retreats . | . . . Traps | -11 -10 -10 ------- Run | Yrd Mat Sub Traps Triggered 2 | . 1 1 Indirectly . | . . . Trap Hack Attempts . | . . . Triggered . | . . . Disarmed . | . . . Reprogrammed . | . . . Reused . | . . . Traps Extracted . | . . . Installed . | . . . Triggered . | . . . Machines | -11 -10 -10 ---------- Run | Yrd Mat Sub Machines Disabled 1 | . . 1 Max in Single Turn 1 | . . 1 Machines Repaired . | . . . Machines Dismantled . | . . . Machines Sabotaged . | . . . Overloaded Fab Kills . | . . . Hacking | -11 -10 -10 --------- Run | Yrd Mat Sub Machines Accessed 5 | . 2 3 Terminals 2 | . 2 . Fabricators . | . . . Repair Stations . | . . . Recycling Units . | . . . Scanalyzers . | . . . Garrison Access . | . . . Total Hacks 17 | . 5 12 Successful 16 | . 4 12 Failed 1 | . 1 . Catastrophic . | . . . Database Lockouts . | . . . Manual 4 | . 4 . Terminals 5 | . 5 . Fabricators . | . . . Repair Stations . | . . . Recycling Units . | . . . Scanalyzers . | . . . Garrison Access . | . . . Terminal Hacks 14 | . 2 12 Record 9 | . . 9 Robot Analysis 1 | . 1 . Open Door 1 | . . 1 Branch Access Points 1 | . 1 . Proto ID Catalog 1 | . . 1 Release Object 1 | . . 1 Fabricator Hacks . | . . . Repair Station Hacks . | . . . Recycling Unit Hacks . | . . . Scanalyzer . | . . . Garrison Access Hacks . | . . . Unauthorized Hacks 2 | . 2 . Terminals 2 | . 2 . Botnet 2 | . 2 . Fabricators . | . . . Repair Stations . | . . . Recycling Units . | . . . Scanalyzers . | . . . Garrison Access . | . . . Data Cores Recovered . | . . . Used . | . . . Hacking Detections 1 | . 1 . Full Trace Events . | . . . Feedback Events . | . . . Feedback Blocked . | . . . Robot Schematics Acquired . | . . . Robots Built . | . . . Authchips . | . . . Time . | . . . Total Robot Build Rating . | . . . Part Schematics Acquired . | . . . Parts Built . | . . . Authchips . | . . . Time . | . . . Total Part Build Rating . | . . . Parts Repaired . | . . . Time . | . . . Parts Recycled . | . . . Recycled Matter . | . . . Retrieved Matter . | . . . Retrieved Components . | . . . Parts Scanalyzed . | . . . Part Schematics Acquired . | . . . Parts Damaged . | . . . Bothacking | -11 -10 -10 ------------ Run | Yrd Mat Sub Used RIF Installer . | . . . Robots Hacked . | . . . Non-combat . | . . . Combat . | . . . Robot Hacks Applied . | . . . Relay Couplers Released . | . . . Fabnet Peak Effective % . | . . . Robots Rewired . | . . . Allies Hacked . | . . . Hacks Repelled . | . . . Allies | -11 -10 -10 -------- Run | Yrd Mat Sub Total Allies . | . . . Largest Group . | . . . Highest-Rated Group . | . . . Highest-Rated Ally . | . . . Total Orders . | . . . Ally Attacks . | . . . Total Damage . | . . . Kills . | . . . Allies Corrupted . | . . . Allies Melted . | . . . Intel | -11 -10 -10 ------- Run | Yrd Mat Sub Active Infowar (turns) 1905 | . 80 1825 Terrain 1905 | . 80 1825 Robot Analysis Total 1 | . 1 . Derelict Logs Recovered 2 | . . 2 Drone Launches . | . . . Drone Recoveries . | . . . Exploration | -11 -10 -10 ------------- Run | Yrd Mat Sub Turns Passed 2236 | 80 315 1841 Spaces Moved 1494 | 53 186 1255 Core 20 | 20 . . Treads . | . . . Legs 1474 | 33 186 1255 Wheels . | . . . Hover . | . . . Flight . | . . . Fastest Speed 50 | 50 120 120 Average Speed 120 | 134 120 120 Slowest Speed 250 | 250 120 120 Overloaded Moves . | . . . Propulsion Burnouts . | . . . Robots Hopped . | . . . Potential Cave-ins . | . . . Cave-ins Triggered . | . . . Exploration Rate (%) 29 | 4 23 60 Regions Visited 2 Branch Regions 1 Pre-discovered Areas 1 | . . 1 Known Exits Taken . | . . . Unknown Exits Taken 2 | 1 1 . Scrap Searched . | . . . Spaces Dug . | . . . Terrain Destroyed . | . . . Melee . | . . . Projectile . | . . . AOE . | . . . Terrain Rammed . | . . . Walls Destroyed . | . . . Machines Disabled . | . . . Actions | -11 -10 -10 --------- Run | Yrd Mat Sub Total 1808 | 59 244 1505 Wait 209 | . 15 194 Move 1492 | 52 185 1255 Hop . | . . . Pick Up 11 | 1 9 1 Fast Attach 11 | 6 4 1 Attach 2 | . . 2 Detach . | . . . Swap 7 | . 5 2 Drop 11 | . 9 2 Fire 65 | . 17 48 Melee . | . . . Ram . | . . . Kick . | . . . Crush . | . . . Escape Stasis . | . . . Rewire . | . . . Trap . | . . . Miscellaneous . | . . . Route ------- -11/Scrapyard -10/Materials (discovered 3 exits: *Min x2 / *Sub) -10/Subcaves (discovered 1 exit: [*Scr]) History --------- Turn | Location | Event 12 | -11/Scrapyard | Discovered new exit (range 14) 81 | -11/Scrapyard | Entered Materials 92 | -10/Materials | Identified exit to Mines 238 | -10/Materials | Discovered new exit (range 10) 301 | -10/Materials | Build established: Mutant 396 | -10/Materials | Entered Subcaves 397 | -10/Subcaves | Approached by a straggling Scientist 495 | -10/Subcaves | Learned location of 1 exit from Materials 553 | -10/Subcaves | Scientist uncovered a shortcut to Scraptown 575 | -10/Subcaves | Learned Materials garrison access intel 606 | -10/Subcaves | Shifting Twisted Machinery released Sub. Monowheel 607 | -10/Subcaves | Shifting Twisted Machinery released Riot Gun 937 | -10/Subcaves | Learned location of Zion (-6) 937 | -10/Subcaves | Met a Zionite searching for "candidates" 1383 | -10/Subcaves | Visited 4L-MR0's lab 1399 | -10/Subcaves | Found Gun Armor 1697 | -10/Subcaves | A swath of the cavern ceiling suddenly collapsed 1725 | -10/Subcaves | Core integrity fell below 50% 2221 | -10/Subcaves | Core integrity fell below 20% 2237 | -10/Subcaves | Destroyed by 3P-51Q(R) with Subdweller Laser Last Messages --------------- 01735_ 5A-A28(R) knocked back. 01738_ 5A-A28(R) destroyed. 01741_ Acquired 47 matter. 01742_ Acquired 2 matter. 01743_ Acquired 9 matter. 01754_ Acquired 1 matter. 01755_ Acquired 12 matter. 01808_ Connecting with SUBCON Basin Controls... >>Release Inventory Accessing inventory controls... Collection purity confirmed 100%... Ejecting SUBCON Basin... Delivery behind schedule, handle with care! 01933_ SR-DZ7(u) deconstructs Twisted Machinery. 02162_ SR-DZ7(u) builds Twisted Machinery. 02217_ IO-FRP(R) knocked back. 02220_ 3P-51Q(R) knocked back. 02220_ IO-FRP(R) knocked back. 02221_ Terrain Scanner destroyed. 02223_ IO-FRP(R) destroyed. Map ----- +----------------------------------------------------+ | ?????????????????????????????????????????????????? | | ?????????????????????????????????????????????????? | | ?????????????????????????????????????????????????? | | ?????????????????????????????????????????????????? | | ??????????????????????????????????????????#??????? | | ?????????????????????????????????????????????????? | | ?????????????????????????????????????????????????? | | ??????????????????????????????????#??????????????? | | ????????????????????????#????????????????????????? | | ????????????????????????????????????#????????????? | | ???????????????#????????#????????????????????????? | | ?????????????????#??????#??????????#?#???????????? | | ????????????#????????????????#??????????????#??#?? | | ????????????????#????????????????????####???#####? | | ??#?????????????#?????##?#?????#??#### ##### ## | | ????????#???###??#???## ####?????## # #?? | | ???????????## #####???# #????## #??? | | ??????????## ##""#????# ###### ## ###### | | ???????#?## """#???## # # ### | | ????????## """"##### # "" | | ????????# """ ### ## "" | | ?#??????# # =# # # ## ## "" | | ???#????# ## ############ ## "" | | ???????#""###"" """ ## %####????#### " | | ???????#""## ## ##" O =%%#???#??#### | | ?????#?#""###"#*# [ @ %R##??##?????## | | ?##????####?#"" ## ###### ##%#????#???##?## | | ??#?#???????#"!!## #???###? ??#?????#### ## | | ???#?#?????##&"# " ##??????? ##??#???## #### | | ???##?????##""# #####?#??????? #??##???# ##?#? | | ?????####?#"##"##??????????? ? ??#??#### ##???? | | ?#?###""###"#"##????????#? ???? #???##??#####????? | | ???###"###""""###????#??#???? ?? #?????????#??? ?? | | ??##"# [ " ##"##??????????????? ?????#?#??#????? | | ??#"# #"########???????????? ??#? ? ???#?#???????? | | ?###""####???"##?????????????#??? ?#????????????# | | ??##""## ####""##??#?#???????????? ?????#???????? | | ??# ## ##""##??#??????????#?? ? ??#?? #??#???? | | ??## #"""#??????????????#???? ???? ??#?????? | | ???#### # ##?#???????????????????????????? ?" | | ??????# #??????????????????????#??# ??????? | | ?????### ## #????????????????????#??#?????? ??? | | #??###### #? #?????????????????? ??#????#? ? ??? | | ???# ## #???#???????????????????? ???#???????? | | ???## ##?????#??????????????????????????????? | | ??#?# # ##?????#???????????????????????????????? | | ???## ####????#?????????????????????????????????? | | ???# ##???????#?????????????????????????????????? | | ???# #??????#???????????????????????????????????? | | ??## ##?????#???????????????????????????????????? | +----------------------------------------------------+ Best States ------------- Heat Dissipation 39 Energy Generation 12 Energy Capacity 265 Matter Stores 300 Matter Capacity 300 Sight Range 16 Terrain Scan Range 14 Terrain Scan Density 10 Evasion (%) 55 Item Schematics ----------------- None Robot Schematics ------------------ None Fabricated ------------ Nothing Repaired ---------- Nothing Alien Tech Used ----------------- None Achievements -------------- None Challenges ------------ None Game ------ Seed StasisTrapFragment Manual? 0 Play Time 00:15:40 Cumulative 301.6 hours Start 2025.07.30 @ 22:19:00 End 2025.08.02 @ 10:29:12 Sessions 4 Manual Loads 0 Difficulty Rogue Special Mode None Game No. 124 Rogue 53 Adventurer 68 Explorer 3 Win Type - Total 24 Types 16/1/1/4/1/0/0/0/0/1 Lore% 75 Gallery% 73 Achievement% 71 Wizard Run 0 Options --------- Layout 0 ASCII 0 Keyboard 0 Movement Numpad Keybinds 0 Fullscreen 1 Font 24/Smallcaps Map View 76x50 Zoom Use 0% Tactical HUD 1 Map Filters NONE Filters NONE Steam 1 RUN: 2fce1e54-4c56-40df-9a9a-3640b47b6b58